fUSD/lending_fUSD_20250125
["ID","MTS","AMOUNT","RATE_DAILY","PERIOD"]
[350309284,1737780693779,-1363.49359677,0.00019589,2]
[350309285,1737780693790,-463.50317557,0.00019589,2]
[350309286,1737780693800,-3755.612,0.00019589,2]
[350309287,1737780693809,-783.9820516,0.00019589,2]
[350309288,1737780693819,-1669.2,0.00019589,2]
[350309289,1737780693828,-648.49388806,0.00019589,2]
[350309290,1737780693838,-880.50155895,0.00019589,2]
[350309291,1737780693847,-783.82425812,0.00019589,2]
[350309292,1737780693857,-541.3627999,0.00019589,2]
[350309293,1737780693866,-151.0,0.00019589,2]
[350309294,1737780693876,-631.52,0.0001965,2]
[350309295,1737780693886,-655.70001756,0.0001965,2]
[350309296,1737780693896,-883.23738202,0.0001965,2]
[350309297,1737780693906,-1126.96919104,0.0001965,2]
[350309298,1737780693915,-1212.9069748,0.0001965,2]
[350309299,1737780693926,-3128.41363434,0.0001965,2]
[350309300,1737780693936,-6082.96018866,0.0001965,2]
[350309301,1737780693946,-996.67347188,0.0001965,2]
[350309302,1737780693957,-770.53361287,0.0001965,2]
[350309303,1737780693966,-2173.87554696,0.0001965,2]
[350309304,1737780693976,-788.56462428,0.0001965,2]
[350309305,1737780693986,-1064.43218362,0.0001965,2]
[350309306,1737780693996,-151.0,0.0001965,2]
[350309307,1737780694005,-1714.60192918,0.0001965,2]
[350309308,1737780694015,-151.0,0.0001965,2]
[350309309,1737780694024,-303.014301,0.0001965,2]
[350309310,1737780694034,-303.014301,0.0001965,2]
[350309311,1737780694043,-1311.35107086,0.0001965,2]
[350309312,1737780694054,-151.0,0.0001965,2]
[350309313,1737780694063,-544.91423376,0.0001965,2]
[350309314,1737780694073,-151.0,0.0001965,2]
[350309315,1737780694083,-2088.33457831,0.0001965,2]
[350309316,1737780694093,-2022.53,0.0001965,2]
[350309317,1737780694103,-450.0,0.00019659,2]
[350309318,1737780694112,-513.63431958,0.00019693,2]
[350309319,1737780694122,-592.79,0.00019725,2]
[350309320,1737780694132,-585.62,0.00019725,2]
[350309321,1737780694143,-694.69,0.00019725,2]
[350309322,1737780694153,-176.86,0.0001978,2]
[350309323,1737780694163,-150.0,0.000198,4]
[350309324,1737780694174,-150.0,0.000198,4]
[350309325,1737780694183,-173.15272143,0.000198,4]
[350309326,1737780694193,-150.0,0.000198,4]
[350309327,1737780694203,-150.17856381,0.000198,4]
[350309328,1737780694212,-150.29206,0.000198,4]
[350309329,1737780694222,-279.21895341,0.000198,4]
[350309330,1737780694231,-150.0,0.000198,4]
[350309331,1737780694241,-592.79,0.00019862,2]
[350309332,1737780694252,-585.76,0.00019862,2]
[350309333,1737780694261,-694.82978139,0.00019862,2]
[350309334,1737780694271,-955.0,0.00019869,2]
[350309335,1737780694280,-150.0,0.00019888,4]
[350309336,1737780694290,-725.42771792,0.00019927,2]
[350309337,1737780694300,-150.0,0.00019938,4]
[350309338,1737780694309,-513.63431958,0.00019969,2]
[350309339,1737780694319,-150.0,0.00019976,4]
[350309340,1737780694329,-592.79,0.00019999,2]
[350309341,1737780694339,-529.58,0.0002,2]
[350309342,1737780694348,-2110.0,0.0002,2]
[350309343,1737780694358,-1320.07,0.0002,2]
[350309344,1737780694367,-150.0,0.00020044,4]
[350309345,1737780694377,-150.0,0.00020064,4]
[350309346,1737780694387,-150.0,0.00020075,4]
[350309347,1737780694397,-1876.2,0.00020089,2]
[350309348,1737780694406,-1931.0,0.000201,2]
[350309349,1737780694416,-592.79,0.00020136,2]
[350309350,1737780694426,-150.0,0.00020152,4]
[350309351,1737780694435,-150.0,0.00020162,2]
[350309352,1737780694445,-150.0,0.00020177,2]
[350309353,1737780694455,-550.0,0.00020207,2]
[350309354,1737780694465,-150.0,0.00020213,4]
[350309355,1737780694476,-1190.39636204,0.00020215,2]
[350309356,1737780694485,-613.33,0.00020237,2]
[350309357,1737780694495,-150.0,0.0002024,4]
[350309358,1737780694505,-513.63431958,0.00020245,2]
[350309359,1737780694515,-592.79,0.00020273,2]
[350309360,1737780694524,-270.40701771,0.00020284,2]
[350309361,1737780694537,-150.0,0.00020289,4]
[350309362,1737780694546,-150.0,0.00020328,4]
[350309363,1737780694555,-150.0,0.0002035,4]
[350309364,1737780694565,-150.0,0.0002035,4]
[350309365,1737780694574,-500.0,0.00020356,2]
[350309366,1737780694688,-500.0,0.00020356,2]
[350309367,1737780694699,-592.79,0.0002041,2]
[350309368,1737780694710,-150.0,0.00020416,4]
[350309369,1737780694724,-150.0,0.00020472,2]
[350309370,1737780694734,-150.0,0.00020488,4]
[350309371,1737780694743,-150.0,0.00020495,2]
[350309372,1737780694752,-2110.0,0.000205,2]
[350309373,1737780694762,-150.0,0.00020504,4]
[350309374,1737780694772,-513.63431958,0.00020521,2]
[350309375,1737780694782,-150.0,0.00020533,4]
[350309376,1737780694791,-592.79,0.00020547,2]
[350309377,1737780694802,-20449.32,0.00020548,2]
[350309378,1737780694812,-177.55,0.00020548,2]
[350309379,1737780694822,-150.0,0.00020566,2]
[350309380,1737780694832,-150.0,0.00020578,2]
[350309381,1737780694842,-150.0,0.00020592,4]
[350309382,1737780694851,-150.0,0.00020625,4]
[350309383,1737780694861,-150.0,0.0002068,4]
[350309384,1737780694870,-592.79,0.00020684,2]
[350309385,1737780694879,-216.16166453,0.00020689,2]
[350309386,1737780694888,-150.0,0.00020732,2]
[350309387,1737780694898,-650.0,0.00020755,2]
[350309388,1737780694907,-1876.2,0.00020758,2]
[350309389,1737780694917,-150.0,0.00020763,4]
[350309390,1737780694927,-150.0,0.00020768,4]
[350309391,1737780694937,-150.0,0.00020778,4]
[350309392,1737780694946,-513.63431958,0.00020797,2]
[350309393,1737780694956,-2840.96,0.000208,2]
[350309394,1737780694966,-592.79,0.00020821,2]
[350309395,1737780694976,-150.0,0.00020856,4]
[350309396,1737780694986,-161.362,0.000209,2]
[350309397,1737780694996,-150.0,0.000209,4]
[350309398,1737780695005,-150.0,0.000209,4]
[350309399,1737780695015,-725.42771792,0.00020914,2]
[350309400,1737780695024,-931.29,0.00020927,2]
[350309401,1737780695033,-150.0,0.00020933,2]
[350309402,1737780695043,-150.0,0.00020944,4]
[350309403,1737780695053,-1504.46381724,0.00020956,2]
[350309404,1737780695062,-592.79,0.00020958,2]
[350309405,1737780695072,-150.0,0.00020979,2]
[350309406,1737780695084,-1000.0,0.00020998,2]
[350309407,1737780695093,-422.73,0.00021,5]
[350309408,1737780695102,-500.0,0.00021,5]
[350309409,1737780695112,-500.0,0.00021,5]
[350309410,1737780695121,-500.0,0.00021,5]
[350309411,1737780695131,-500.0,0.00021,5]
[350309412,1737780695139,-2110.0,0.00021,2]
[350309413,1737780695149,-1000.0,0.00021014,2]
[350309414,1737780695158,-150.0,0.00021018,2]
[350309415,1737780695168,-150.0,0.00021022,4]
[350309416,1737780695178,-150.0,0.00021025,2]
[350309417,1737780695188,-150.0,0.00021032,4]
[350309418,1737780695197,-150.0,0.00021038,4]
[350309419,1737780695207,-773.64,0.00021041,2]
[350309420,1737780695217,-773.64,0.00021041,2]
[350309421,1737780695226,-773.64,0.00021041,2]
[350309422,1737780695235,-517.53,0.00021041,2]
[350309423,1737780695245,-513.63431958,0.00021072,2]
[350309424,1737780695256,-592.79,0.00021095,2]
[350309425,1737780695265,-150.0,0.0002112,4]
[350309426,1737780695275,-150.0,0.00021174,2]
[350309427,1737780695284,-150.0,0.00021175,4]
[350309428,1737780695293,-150.0,0.00021178,2]
[350309429,1737780695303,-298.2,0.00021178,2]
[350309430,1737780695312,-438.0,0.00021178,2]
[350309431,1737780695322,-300.0,0.00021178,2]
[350309432,1737780695332,-302.08,0.00021178,2]
[350309433,1737780695341,-982.7,0.00021178,2]
[350309434,1737780695351,-300.49,0.00021178,2]
[350309435,1737780695360,-150.0,0.00021178,2]
[350309436,1737780695370,-982.7,0.00021178,2]
[350309437,1737780695379,-438.0,0.00021178,2]
[350309438,1737780695390,-298.2,0.00021178,2]
[350309439,1737780695399,-150.0,0.00021178,2]
[350309440,1737780695408,-298.2,0.00021178,2]
[350309441,1737780695418,-150.0,0.00021178,2]
[350309442,1737780695428,-150.0,0.00021178,2]
[350309443,1737780695437,-982.7,0.00021178,2]
[350309444,1737780695447,-438.0,0.00021178,2]
[350309445,1737780695456,-438.0,0.00021178,2]
[350309446,1737780695466,-298.2,0.00021178,2]
[350309447,1737780695476,-982.7,0.00021178,2]
[350309448,1737780695486,-150.0,0.00021178,2]
[350309449,1737780695496,-150.0,0.00021178,2]
[350309450,1737780695506,-150.0,0.00021178,2]
[350309451,1737780695516,-298.2,0.00021178,2]
[350309452,1737780695525,-260.35,0.00021178,2]
[350309453,1737780695538,-982.7,0.00021178,2]
[350309454,1737780695548,-595.65,0.00021178,2]
[350309455,1737780695557,-982.7,0.00021178,2]
[350309456,1737780695567,-150.0,0.00021178,2]
[350309457,1737780695576,-150.0,0.00021178,2]
[350309458,1737780695586,-982.7,0.00021178,2]
[350309459,1737780695596,-301.85,0.00021178,2]
[350309460,1737780695607,-982.7,0.00021178,2]
[350309461,1737780695617,-298.21,0.00021178,2]
[350309462,1737780695626,-150.0,0.00021182,2]
[350309463,1737780695636,-150.0,0.00021208,4]
[350309464,1737780695646,-150.0,0.00021217,2]
[350309465,1737780695656,-592.79,0.00021232,2]
[350309466,1737780695664,-150.0,0.00021244,2]
[350309467,1737780695674,-150.0,0.00021264,2]
[350309468,1737780695683,-150.0,0.00021267,4]
[350309469,1737780695693,-150.0,0.0002129,2]
[350309470,1737780695704,-150.0,0.00021296,4]
[350309471,1737780695713,-150.0,0.00021302,2]
[350309472,1737780695723,-750.0,0.00021303,2]
[350309473,1737780695734,-150.0,0.00021313,4]
[350309474,1737780695744,-1018.8361527,0.00021313,2]
[350309475,1737780695753,-150.0,0.00021325,2]
[350309476,1737780695763,-2047.0,0.0002134,2]
[350309477,1737780695771,-513.63431958,0.00021348,2]
[350309478,1737780695781,-150.0,0.0002136,2]
[350309479,1737780695791,-592.79,0.00021369,2]
[350309480,1737780695801,-150.0,0.00021372,2]
[350309481,1737780695811,-150.0,0.00021384,4]
[350309482,1737780695821,-220.0,0.00021393,2]
[350309483,1737780695831,-5800.0,0.00021407,2]
[350309484,1737780695841,-5800.0,0.00021416,2]
[350309485,1737780695850,-5800.0,0.00021424,2]
[350309486,1737780695859,-5800.0,0.00021433,2]
[350309487,1737780695869,-150.0,0.00021441,2]
[350309488,1737780695879,-150.0,0.00021445,2]
[350309489,1737780695889,-150.0,0.0002145,4]
[350309490,1737780695898,-150.0,0.0002145,4]
[350309491,1737780695908,-150.0,0.00021451,2]
[350309492,1737780695917,-150.0,0.00021457,2]
[350309493,1737780695927,-151.14570161,0.00021461,2]
[350309494,1737780695937,-150.0,0.00021462,2]
[350309495,1737780695946,-396.68557481,0.00021463,2]
[350309496,1737780695956,-150.0,0.00021472,4]
[350309497,1737780695966,-150.0,0.00021482,2]
[350309498,1737780695975,-1225.34,0.00021483,2]
[350309499,1737780695985,-150.0,0.000215,2]
[350309500,1737780695995,-2110.0,0.000215,2]
[350309501,1737780696004,-592.79,0.00021506,2]
[350309502,1737780696013,-150.0,0.00021511,4]
[350309503,1737780696026,-150.0,0.00021542,2]
[350309504,1737780696037,-2047.0,0.0002156,2]
[350309505,1737780696046,-150.0,0.0002156,4]
[350309506,1737780696055,-634.3858151,0.0002156,2]
[350309507,1737780696068,-150.0,0.00021579,2]
[350309508,1737780696084,-150.0,0.00021588,4]
[350309509,1737780696094,-150.0,0.00021595,2]
[350309510,1737780696103,-300.0,0.00021599,2]
[350309511,1737780696113,-150.0,0.00021604,2]
[350309512,1737780696122,-150.0,0.0002161,2]
[350309513,1737780696132,-150.0,0.0002161,2]
[350309514,1737780696142,-513.63431958,0.00021624,3]
[350309515,1737780696151,-592.79,0.00021643,2]
[350309516,1737780696161,-150.0,0.00021648,4]
[350309517,1737780696171,-150.0,0.00021656,2]
[350309518,1737780696180,-300.0,0.00021676,2]
[350309519,1737780696190,-1356.0,0.000217,2]
[350309520,1737780696201,-150.0,0.00021701,2]
[350309521,1737780696211,-150.0,0.00021718,2]
[350309522,1737780696221,-150.0,0.00021725,4]
[350309523,1737780696230,-252.93809162,0.00021731,2]
[350309524,1737780696240,-150.0,0.00021736,4]
[350309525,1737780696250,-150.0,0.00021737,2]
[350309526,1737780696259,-150.0,0.00021745,2]
[350309527,1737780696269,-150.0,0.00021756,4]
[350309528,1737780696278,-1270.0,0.00021757,2]
[350309529,1737780696289,-1870.454,0.00021757,2]
[350309530,1737780696299,-2948.0,0.00021757,2]
[350309531,1737780696308,-1264.343,0.00021757,2]
[350309532,1737780696420,-860.0,0.00021757,2]
[350309533,1737780696430,-912.946,0.00021757,2]
[350309534,1737780696440,-4000.832,0.00021757,2]
[350309535,1737780696448,-539.936,0.00021757,2]
[350309536,1737780696458,-150.0,0.00021757,2]
[350309537,1737780696468,-150.0,0.00021757,2]
[350309538,1737780696478,-150.0,0.00021757,2]
[350309539,1737780696488,-3901.0,0.00021757,2]
[350309540,1737780696498,-1106.0,0.00021757,2]
[350309541,1737780696508,-150.0,0.0002177,2]
[350309542,1737780696517,-2047.0,0.0002178,2]
[350309543,1737780696527,-592.79,0.0002178,2]
[350309544,1737780696541,-2325.99553,0.0002178,2]
[350309545,1737780696551,-300.0,0.00021789,2]
[350309546,1737780696560,-5246.41899307,0.000218,2]
[350309547,1737780696570,-1296.28985866,0.00021806,2]
[350309548,1737780696579,-150.0,0.00021812,2]
[350309549,1737780696589,-150.0,0.00021813,2]
[350309550,1737780696599,-150.0,0.00021819,2]
[350309551,1737780696609,-500.0,0.00021823,2]
[350309552,1737780696619,-500.0,0.00021824,2]
[350309553,1737780696629,-150.0,0.00021824,4]
[350309554,1737780696639,-396.68557482,0.00021838,2]
[350309555,1737780696648,-615.71865067,0.00021851,2]
[350309556,1737780696657,-150.0,0.00021852,2]
[350309557,1737780696667,-150.0,0.00021856,2]
[350309558,1737780696677,-1395.17999743,0.00021862,2]
[350309559,1737780696687,-150.0,0.00021863,4]
[350309560,1737780696696,-150.0,0.0002187,2]
[350309561,1737780696706,-150.0,0.0002188,2]
[350309562,1737780696715,-150.0,0.00021889,2]
[350309563,1737780696724,-2000.0,0.0002189,2]
[350309564,1737780696734,-1999.0,0.0002189,2]
[350309565,1737780696744,-1999.0,0.0002189,2]
[350309566,1737780696753,-1999.0,0.0002189,2]
[350309567,1737780696762,-1999.0,0.0002189,2]
[350309568,1737780696772,-1999.0,0.0002189,2]
[350309569,1737780696781,-1999.0,0.0002189,2]
[350309570,1737780696791,-1999.0,0.0002189,2]
[350309571,1737780696801,-1999.0,0.0002189,2]
[350309572,1737780696810,-1999.0,0.0002189,2]
[350309573,1737780696819,-2009.0,0.0002189,2]
[350309574,1737780696828,-96044.8706,0.000219,2]
[350309575,1737780696837,-721.3032,0.000219,2]
[350309576,1737780696847,-21280.640163,0.000219,2]
[350309577,1737780696857,-513.63431958,0.000219,3]
[350309578,1737780696866,-725.42771792,0.000219,2]
[350309579,1737780696876,-270.40701771,0.000219,2]
[350309580,1737780696887,-1190.39636204,0.000219,2]
[350309581,1737780696897,-1393.0,0.000219,2]
[350309582,1737780696906,-150.0,0.00021906,2]
[350309583,1737780696917,-150.0,0.00021912,4]
[350309584,1737780696926,-150.0,0.00021916,2]
[350309585,1737780696936,-2000.0,0.00021917,30]
[350309586,1737780696947,-592.79,0.00021917,2]
[350309587,1737780696958,-500.0,0.00021917,3]
[350309588,1737780696968,-500.0,0.00021917,3]
[350309589,1737780696977,-500.0,0.00021917,3]
[350309590,1737780696988,-500.0,0.00021917,3]
[350309591,1737780696998,-510.85362135,0.00021917,3]
[350309592,1737780697008,-150.0,0.00021918,2]
[350309593,1737780697019,-245.77590743,0.00021962,30]
[350309594,1737780697028,-150.0,0.00021962,30]
[350309595,1737780697037,-641.08358193,0.00021962,60]
[350309596,1737780697047,-30104.32,0.00021962,5]
[350309597,1737780697056,-150.0,0.00021982,2]
[350309598,1737780697066,-4762.3322365,0.00021985,2]
[350309599,1737780697075,-3753.7160205,0.00021985,2]
[350309600,1737780697084,-2745.0998044,0.00021985,2]
[350309601,1737780697094,-1736.4835884,0.00021985,2]
[350309602,1737780697103,-727.8673723,0.00021985,2]
[350309603,1737780697112,-1278.733468,0.00021985,2]
[350309604,1737780697122,-1008.3389494,0.00021985,2]
[350309605,1737780697131,-737.9444308,0.00021985,2]
[350309606,1737780697141,-467.5499122,0.00021985,2]
[350309607,1737780697150,-197.1553936,0.00021985,2]
[350309608,1737780697159,-589.2947492,0.00021985,2]
[350309609,1737780697169,-589.2947492,0.00021985,2]
[350309610,1737780697179,-589.2947492,0.00021985,2]
[350309611,1737780697188,-589.2947492,0.00021985,2]
[350309612,1737780697197,-589.2947492,0.00021985,2]
[350309613,1737780697210,-356.9197655,0.00021985,2]
[350309614,1737780697221,-356.9197655,0.00021985,2]
[350309615,1737780697231,-356.9197655,0.00021985,2]
[350309616,1737780697240,-356.9197655,0.00021985,2]
[350309617,1737780697249,-356.9197655,0.00021985,2]
[350309618,1737780697260,-1128.1115919,0.00021985,2]
[350309619,1737780697269,-889.5668143,0.00021985,2]
[350309620,1737780697279,-651.0220366,0.00021985,2]
[350309621,1737780697289,-412.4772589,0.00021985,2]
[350309622,1737780697299,-173.9324812,0.00021985,2]
[350309623,1737780697309,-2517.3667043,0.00021985,2]
[350309624,1737780697319,-1985.0570595,0.00021985,2]
[350309625,1737780697329,-1452.7474147,0.00021985,2]
[350309626,1737780697339,-920.4377699,0.00021985,2]
[350309627,1737780697348,-388.1281251,0.00021985,2]
[350309628,1737780697357,-151.0,0.00021985,7]
[350309629,1737780697367,-151.0,0.00021985,7]
[350309630,1737780697376,-151.0,0.00021985,7]
[350309631,1737780697386,-151.0,0.00021985,7]
[350309632,1737780697396,-151.0,0.00021985,7]
[350309633,1737780697405,-151.0,0.00021985,7]
[350309634,1737780697415,-1102.6978851,0.00021985,2]
[350309635,1737780697424,-1212.1568663,0.00021985,2]
[350309636,1737780697434,-1321.6158475,0.00021985,2]
[350309637,1737780697444,-1431.0748288,0.00021985,2]
[350309638,1737780697453,-1540.53381,0.00021985,2]
[350309639,1737780697463,-151.0,0.00021985,7]
[350309640,1737780697473,-151.0,0.00021985,7]
[350309641,1737780697482,-216.087726,0.00021985,7]
[350309642,1737780697492,-158.383083,0.00021985,7]
[350309643,1737780697501,-151.678266,0.00021985,7]
[350309644,1737780697511,-151.786515,0.00021985,7]
[350309645,1737780697521,-151.0,0.00021985,7]
[350309646,1737780697533,-151.0,0.00021985,7]
[350309647,1737780697544,-151.0,0.00021985,7]
[350309648,1737780697554,-152.043648,0.00021985,7]
[350309649,1737780697563,-151.0,0.00021985,7]
[350309650,1737780697573,-151.0,0.00021985,7]
[350309651,1737780697583,-5770.9484525,0.00021989,2]
[350309652,1737780697592,-1549.1279867,0.00021989,2]
[350309653,1737780697601,-589.2947492,0.00021989,2]
[350309654,1737780697612,-356.9197655,0.00021989,2]
[350309655,1737780697622,-1366.6563696,0.00021989,2]
[350309656,1737780697631,-3049.6763491,0.00021989,2]
[350309657,1737780697641,-993.2389038,0.00021989,2]
[350309658,1737780697650,-667018.38499854,0.0002199,3]
[350309659,1737780697660,-150.0,0.0002199,2]
[350309660,1737780697670,-4200.0,0.0002199,3]
[350309661,1737780697679,-5050.0,0.0002199,28]
[350309662,1737780697689,-2000.0,0.0002199,27]
[350309663,1737780697698,-169.40293128,0.00021998,2]
[350309664,1737780697708,-507.56037015,0.00021999,2]
[350309665,1737780697717,-503.04165342,0.00021999,2]
[350309666,1737780697727,-500.0,0.00021999,2]
[350309667,1737780697736,-500.0,0.00021999,2]
[350309668,1737780697746,-502.01921503,0.00021999,2]
[350309669,1737780697756,-500.73856327,0.00021999,2]
[350309670,1737780697765,-2000.0,0.00021999,2]
[350309671,1737780697775,-500.0,0.00021999,2]
[350309672,1737780697784,-502.95059892,0.00021999,2]
[350309673,1737780697793,-609.85536102,0.00021999,2]
[350309674,1737780697803,-2000.0,0.00021999,2]
[350309675,1737780697812,-2000.0,0.00021999,2]
[350309676,1737780697821,-504.89316849,0.00021999,2]
[350309677,1737780697831,-2000.0,0.00021999,2]
[350309678,1737780697840,-504.65391323,0.00021999,2]
[350309679,1737780697849,-2000.0,0.00021999,2]
[350309680,1737780697859,-502.0126864,0.00021999,2]
[350309681,1737780697868,-506.35910993,0.00021999,2]
[350309682,1737780697877,-2000.0,0.00021999,2]
[350309683,1737780697887,-301.70050738,0.00021999,2]
[350309684,1737780697897,-2000.0,0.00021999,2]
[350309685,1737780697906,-501.79218393,0.00021999,2]
[350309686,1737780697915,-505.06548253,0.00021999,2]
[350309687,1737780697925,-2000.0,0.00021999,2]
[350309688,1737780697934,-502.72224881,0.00021999,2]
[350309689,1737780697943,-500.0,0.00021999,2]
[350309690,1737780697953,-502.02448123,0.00021999,2]
[350309691,1737780697962,-202.93245154,0.00021999,2]
[350309692,1737780697972,-502.82550983,0.00021999,2]
[350309693,1737780697981,-416.72478951,0.00021999,2]
[350309694,1737780697991,-255.88403069,0.00021999,2]
[350309695,1737780698000,-500.0,0.00021999,2]
[350309696,1737780698010,-264.64531716,0.00021999,2]
[350309697,1737780698019,-504.43331819,0.00021999,2]
[350309698,1737780698029,-503.75841606,0.00021999,2]
[350309699,1737780698038,-500.0,0.00021999,2]
[350309700,1737780698048,-508.45248196,0.00021999,2]
[350309701,1737780698059,-500.0,0.00021999,2]
[350309702,1737780698068,-525.96317762,0.00021999,2]
[350309703,1737780698078,-509.44136386,0.00021999,2]
[350309704,1737780698088,-501.07183283,0.00021999,2]
[350309705,1737780698097,-502.40075199,0.00021999,2]
[350309706,1737780698106,-501.65945409,0.00021999,2]
[350309707,1737780698116,-508.11449474,0.00021999,2]
[350309708,1737780698125,-500.0,0.00021999,2]
[350309709,1737780698135,-500.0,0.00021999,2]
[350309710,1737780698144,-500.0,0.00021999,2]
[350309711,1737780698154,-500.0,0.00021999,2]
[350309712,1737780698166,-552.72,0.00021999,2]
[350309713,1737780698175,-500.0,0.00021999,2]
[350309714,1737780698186,-500.0,0.00021999,2]
[350309715,1737780698196,-500.0,0.00021999,2]
[350309716,1737780698206,-500.0,0.00021999,2]
[350309717,1737780698216,-500.0,0.00021999,2]
[350309718,1737780698225,-151.0,0.00021999,7]
[350309719,1737780698235,-151.0,0.00021999,7]
[350309720,1737780698246,-151.0,0.00021999,7]
[350309721,1737780698255,-151.0,0.00021999,7]
[350309722,1737780698265,-151.0,0.00021999,7]
[350309723,1737780698276,-366.28502129,0.00021999,7]
[350309724,1737780698287,-1023101.13405998,0.00022,2]
[350309725,1737780698545,-23426.43236207,0.00022,2]
[350309726,1737780698578,-500.0,0.00016712,2]
[350309727,1737780698588,-42412.03224951,0.00022,2]
[350309728,1737780698600,-1399.11444293,0.00022,2]
[350309729,1737780698612,-14111.77431537,0.00022,2]
[350309730,1737780698853,-500.0,0.00016438,2]
[350309731,1737780698863,-500.0,0.00016438,2]
[350309732,1737780698873,-500.0,0.00016438,2]
[350309733,1737780698882,-237.93559485,0.00016438,2]
[350309734,1737780698957,-55.55895435,0.00016438,2]
[350309735,1737780698968,-206.5054508,0.00016438,2]
[350309736,1737780698985,-503.7587074,0.00016438,2]
[350309737,1737780698995,-500.0,0.00016438,2]
[350309738,1737780699004,-500.0,0.00016575,2]
[350309739,1737780699014,-500.0,0.00016575,2]
[350309740,1737780699024,-506.05541281,0.00016575,2]
[350309741,1737780699033,-500.0,0.00016575,2]
[350309742,1737780699043,-637.680429,0.00016712,2]
[350309743,1737780699054,-2045.099571,0.00016712,2]
[350309744,1737780699064,-500.0,0.00016712,2]
[350309745,1737780699074,-500.0,0.00016712,2]
[350309746,1737780699084,-500.0,0.00016849,2]
[350309747,1737780699093,-1496.25812367,0.00016849,2]
[350309748,1737780699106,-1186.52187633,0.00016849,2]
[350309749,1737780699114,-500.0,0.00016986,2]
[350309750,1737780699123,-2682.78,0.00016986,2]
[350309751,1737780699132,-500.0,0.00017123,2]
[350309752,1737780699141,-2142.25685111,0.00017123,2]
[350309753,1737780699152,-330.3,0.00017123,2]
[350309754,1737780699172,-210.22314889,0.00017123,2]
[350309755,1737780699181,-500.0,0.0001726,2]
[350309756,1737780699190,-2682.78,0.0001726,2]
[350309757,1737780699199,-500.0,0.00017397,2]
[350309758,1737780699208,-2682.78,0.00017397,2]
[350309759,1737780699217,-500.0,0.00017534,2]
[350309760,1737780699226,-2682.78,0.00017534,2]
[350309761,1737780699235,-500.0,0.00017671,2]
[350309762,1737780699244,-1890.75533,0.000177,2]
[350309763,1737780699253,-173.449739,0.00019589,2]
[350309764,1737780699262,-1890.75533,0.000199,2]
[350309765,1737780699271,-42779.14243639,0.00022,2]
[350309766,1737780699299,-500.0,0.00016575,2]
[350309767,1737780699308,-500.0,0.00016849,2]
[350309768,1737780699317,-2682.78,0.00017671,2]
[350309769,1737780699327,-4093.6674,0.00022,2]
[350309770,1737780699338,-790.53199331,0.00022,2]
[350309771,1737780699358,-1210.18610939,0.00022,2]
[350309772,1737780699380,-4385.44406825,0.00022,2]
[350309773,1737780699954,-299.08970694,0.00016438,2]
[350309774,1737780699963,-500.0,0.00016438,2]
[350309775,1737780699973,-502.70280693,0.00016438,2]
[350309776,1737780699982,-500.0,0.00016438,2]
[350309777,1737780699991,-500.0,0.00016438,2]
[350309778,1737780700001,-500.0,0.00016438,2]
[350309779,1737780700010,-523.37790507,0.00016575,2]
[350309780,1737780700019,-500.0,0.00016575,2]
[350309781,1737780700029,-500.0,0.00016712,2]
[350309782,1737780700038,-500.0,0.00016712,2]
[350309783,1737780700047,-500.0,0.00016849,2]